fUSD/lending_fUSD_20260602
["ID","MTS","AMOUNT","RATE_DAILY","PERIOD"]
[423744516,1780368638000,-4204.44793707,0.00013043,2]
[423744506,1780368638000,-150.0,0.00012892,2]
[423744522,1780368638000,-250.0,0.00013098,2]
[423744529,1780368638000,-13138.92407488,0.00013143,2]
[423744523,1780368638000,-151.0,0.0001314,2]
[423744526,1780368638000,-1500.0,0.00013143,2]
[423744528,1780368638000,-500.0,0.00013143,3]
[423744524,1780368638000,-151.0,0.0001314,2]
[423744525,1780368638000,-250.0,0.00013143,2]
[423744527,1780368638000,-500.0,0.00013143,3]
[423744519,1780368638000,-448.74647916,0.00013043,2]
[423744520,1780368638000,-5000.0,0.00013043,2]
[423744517,1780368638000,-720.39326293,0.00013043,2]
[423744518,1780368638000,-948.58242084,0.00013043,2]
[423744521,1780368638000,-228.95,0.00013077,2]
[423744556,1780368639000,-150.0,0.00013488,2]
[423744566,1780368639000,-500.0,0.00013529,2]
[423744558,1780368639000,-150.0,0.00013488,2]
[423744564,1780368639000,-150.0,0.00013488,2]
[423744559,1780368639000,-150.3191625,0.00013488,2]
[423744560,1780368639000,-150.0,0.00013488,2]
[423744561,1780368639000,-150.04099743,0.00013488,2]
[423744562,1780368639000,-150.0,0.00013488,2]
[423744567,1780368639000,-150.0,0.00013541,2]
[423744569,1780368639000,-150.0,0.00013595,2]
[423744575,1780368639000,-207.32653061,0.00013662,2]
[423744570,1780368639000,-500.0,0.00013617,2]
[423744572,1780368639000,-150.0,0.00013648,2]
[423744571,1780368639000,-150.0,0.00013624,2]
[423744576,1780368639000,-150.0,0.00013675,2]
[423744574,1780368639000,-12385.49998462,0.00013662,2]
[423744573,1780368639000,-2000.0,0.00013651,2]
[423744577,1780368639000,-500.0,0.00013698,2]
[423744578,1780368639000,-500.0,0.00013698,2]
[423744579,1780368639000,-500.0,0.00013698,2]
[423744580,1780368639000,-475.86141886,0.00013698,2]
[423744563,1780368639000,-150.0,0.00013488,2]
[423744568,1780368639000,-270.238407,0.00013591,2]
[423744557,1780368639000,-150.0,0.00013488,2]
[423744538,1780368639000,-500.0,0.00013255,2]
[423744555,1780368639000,-150.0,0.00013488,2]
[423744532,1780368639000,-2489.3097743,0.00013143,2]
[423744531,1780368639000,-160.0,0.00012675,2]
[423744534,1780368639000,-33243.3462,0.00013143,2]
[423744533,1780368639000,-1484371.76615082,0.00013143,2]
[423744535,1780368639000,-500.0,0.00013185,2]
[423744537,1780368639000,-12385.49998462,0.00013249,2]
[423744536,1780368639000,-500.0,0.00013235,2]
[423744587,1780368639000,-500.0,0.00013698,2]
[423744539,1780368639000,-500.0,0.00013329,2]
[423744540,1780368639000,-500.0,0.00013329,2]
[423744541,1780368639000,-207.32653061,0.00013353,2]
[423744543,1780368639000,-500.0,0.00013356,2]
[423744542,1780368639000,-700.0,0.00013356,2]
[423744545,1780368639000,-150.0,0.00013368,2]
[423744544,1780368639000,-150.0,0.00013368,2]
[423744547,1780368639000,-228.95,0.00013388,2]
[423744548,1780368639000,-215.67541492,0.00013392,2]
[423744546,1780368639000,-200.84544114,0.00013368,2]
[423744550,1780368639000,-196.75034628,0.00013434,2]
[423744551,1780368639000,-250.0,0.00013442,2]
[423744553,1780368639000,-500.0,0.00013473,2]
[423744552,1780368639000,-12385.49998462,0.00013456,2]
[423744549,1780368639000,-250.0,0.00013419,2]
[423744554,1780368639000,-150.0,0.00013488,2]
[423744583,1780368639000,-500.0,0.00013698,2]
[423744565,1780368639000,-250.0,0.0001349,2]
[423744584,1780368639000,-500.0,0.00013698,2]
[423744608,1780368639000,-268.63965714,0.00013698,2]
[423744622,1780368639000,-500.0,0.00013698,2]
[423744623,1780368639000,-500.0,0.00013698,2]
[423744626,1780368639000,-500.0,0.00013698,2]
[423744627,1780368639000,-500.0,0.00013698,2]
[423744624,1780368639000,-504.04395398,0.00013698,2]
[423744625,1780368639000,-500.0,0.00013698,2]
[423744631,1780368639000,-500.0,0.00013698,2]
[423744629,1780368639000,-544.0,0.00013698,2]
[423744630,1780368639000,-544.0,0.00013698,2]
[423744628,1780368639000,-500.0,0.00013698,2]
[423744632,1780368639000,-500.0,0.00013698,2]
[423744634,1780368639000,-500.0,0.00013698,2]
[423744635,1780368639000,-500.0,0.00013698,2]
[423744639,1780368639000,-507.39193482,0.00013698,2]
[423744637,1780368639000,-500.0,0.00013698,2]
[423744633,1780368639000,-500.0,0.00013698,2]
[423744638,1780368639000,-500.0,0.00013698,2]
[423744642,1780368639000,-500.0,0.00013698,2]
[423744641,1780368639000,-500.0,0.00013698,2]
[423744640,1780368639000,-500.0,0.00013698,2]
[423744643,1780368639000,-500.0,0.00013698,2]
[423744586,1780368639000,-500.0,0.00013698,2]
[423744607,1780368639000,-500.0,0.00013698,2]
[423744610,1780368639000,-500.0,0.00013698,2]
[423744636,1780368639000,-500.0,0.00013698,2]
[423744616,1780368639000,-500.0,0.00013698,2]
[423744582,1780368639000,-500.0,0.00013698,2]
[423744618,1780368639000,-507.43620505,0.00013698,2]
[423744585,1780368639000,-500.0,0.00013698,2]
[423744581,1780368639000,-500.0,0.00013698,2]
[423744588,1780368639000,-500.0,0.00013698,2]
[423744589,1780368639000,-502.22681897,0.00013698,2]
[423744592,1780368639000,-578.12,0.00013698,2]
[423744601,1780368639000,-500.0,0.00013698,2]
[423744600,1780368639000,-500.0,0.00013698,2]
[423744590,1780368639000,-500.0,0.00013698,2]
[423744593,1780368639000,-578.12,0.00013698,2]
[423744602,1780368639000,-500.0,0.00013698,2]
[423744591,1780368639000,-500.0,0.00013698,2]
[423744599,1780368639000,-500.0,0.00013698,2]
[423744620,1780368639000,-500.0,0.00013698,2]
[423744597,1780368639000,-500.0,0.00013698,2]
[423744613,1780368639000,-500.0,0.00013698,2]
[423744604,1780368639000,-500.0,0.00013698,2]
[423744615,1780368639000,-500.0,0.00013698,2]
[423744605,1780368639000,-500.0,0.00013698,2]
[423744611,1780368639000,-500.0,0.00013698,2]
[423744603,1780368639000,-500.0,0.00013698,2]
[423744596,1780368639000,-500.0,0.00013698,2]
[423744594,1780368639000,-500.0,0.00013698,2]
[423744598,1780368639000,-500.0,0.00013698,2]
[423744666,1780368640000,-228.95,0.000137,2]
[423744665,1780368640000,-721.34,0.00013699,2]
[423744662,1780368640000,-2500.0,0.00013699,2]
[423744661,1780368640000,-962.05,0.00013698,2]
[423744659,1780368640000,-962.05,0.00013698,2]
[423744669,1780368640000,-150.0,0.00013737,2]
[423744676,1780368640000,-962.05,0.00013775,2]
[423744671,1780368640000,-150.0,0.0001376,2]
[423744670,1780368640000,-150.0,0.00013755,2]
[423744672,1780368640000,-500.0,0.00013761,2]
[423744674,1780368640000,-500.0,0.00013775,2]
[423744677,1780368640000,-4722.5678487,0.00013776,2]
[423744660,1780368640000,-962.05,0.00013698,2]
[423744678,1780368640000,-161067.247703,0.00013776,2]
[423744668,1780368640000,-862.03,0.00013731,2]
[423744658,1780368640000,-962.05,0.00013698,2]
[423744652,1780368640000,-500.0,0.00013698,2]
[423744663,1780368640000,-166.66,0.00013699,2]
[423744673,1780368640000,-500.0,0.00013775,2]
[423744644,1780368640000,-500.0,0.00013698,2]
[423744646,1780368640000,-500.0,0.00013698,2]
[423744648,1780368640000,-500.0,0.00013698,2]
[423744654,1780368640000,-509.62854778,0.00013698,2]
[423744653,1780368640000,-500.0,0.00013698,2]
[423744649,1780368640000,-500.0,0.00013698,2]
[423744650,1780368640000,-511.15953142,0.00013698,2]
[423744651,1780368640000,-500.0,0.00013698,2]
[423744647,1780368640000,-500.0,0.00013698,2]
[423744645,1780368640000,-500.0,0.00013698,2]
[423744655,1780368640000,-962.05,0.00013698,2]
[423744657,1780368640000,-962.05,0.00013698,2]
[423744656,1780368640000,-962.05,0.00013698,2]
[423744667,1780368640000,-150.0,0.00013702,2]
[423744664,1780368640000,-200.0,0.00013699,2]
[423744675,1780368640000,-500.0,0.00013775,2]
[423744707,1780368640000,-316.40773404,0.00013827,2]
[423744681,1780368640000,-227.855891,0.00013776,2]
[423744701,1780368640000,-150.0,0.00013809,2]
[423744699,1780368640000,-500.0,0.00013796,2]
[423744700,1780368640000,-500.0,0.00013803,2]
[423744703,1780368640000,-50389.55849384,0.00013827,2]
[423744713,1780368640000,-161.1842386,0.00013865,2]
[423744709,1780368640000,-97.46773027,0.00013836,2]
[423744702,1780368640000,-215.00504169,0.00013825,2]
[423744708,1780368640000,-195.40226973,0.00013827,2]
[423744710,1780368640000,-69.19226973,0.00013836,2]
[423744711,1780368640000,-150.0,0.00013862,2]
[423744712,1780368640000,-150.0,0.00013862,2]
[423744714,1780368640000,-2942.19381483,0.00013868,2]
[423744715,1780368640000,-665.0,0.00013868,2]
[423744716,1780368640000,-293.62093218,0.00013868,2]
[423744706,1780368640000,-498.74710309,0.00013827,2]
[423744679,1780368640000,-1646.1408543,0.00013776,2]
[423744698,1780368640000,-500.0,0.00013796,2]
[423744696,1780368640000,-932.0,0.00013789,2]
[423744680,1780368640000,-227.855891,0.00013776,2]
[423744683,1780368640000,-227.855891,0.00013776,2]
[423744682,1780368640000,-227.855891,0.00013776,2]
[423744686,1780368640000,-151.0,0.00013776,2]
[423744684,1780368640000,-151.0,0.00013776,2]
[423744685,1780368640000,-151.0,0.00013776,2]
[423744693,1780368640000,-1276.09,0.00013789,2]
[423744690,1780368640000,-929.0,0.00013789,2]
[423744687,1780368640000,-151.0,0.00013776,2]
[423744689,1780368640000,-500.0,0.00013776,3]
[423744691,1780368640000,-3560.889,0.00013789,2]
[423744692,1780368640000,-1357.0,0.00013789,2]
[423744695,1780368640000,-150.0,0.00013789,2]
[423744694,1780368640000,-525.0,0.00013789,2]
[423744697,1780368640000,-487.587,0.00013789,2]
[423744688,1780368640000,-1500.0,0.00013776,2]
[423744740,1780368646000,-353.93710715,0.00013789,2]
[423744746,1780368666000,-200.0,0.000169,30]
[423744744,1780368666000,-200.0,0.000169,30]
[423744745,1780368666000,-200.0,0.000169,30]
[423744747,1780368666000,-200.0,0.000169,30]
[423744748,1780368666000,-200.0,0.000169,30]
[423744749,1780368711000,-200.0,0.000169,30]
[423744751,1780368711000,-349.92528331,0.000169,30]
[423744750,1780368711000,-200.0,0.000169,30]
[423744754,1780368934000,-3409.546208,0.00012058,2]
[423744757,1780368951000,200.0,0.00030137,120]
[423744755,1780368951000,-283.725488,0.00011958,2]
[423744756,1780368951000,-1716.274512,0.00012058,2]
[423744758,1780368989000,-150.0,0.00011873,2]
[423744759,1780369004000,-1000.0,0.0001191,2]
[423744760,1780369042000,-283.725488,0.00012058,2]
[423744762,1780369058000,-972.44525601,0.00012119,2]
[423744761,1780369058000,-227.55474399,0.00011938,2]
[423744764,1780369095000,-227.55474399,0.00012119,2]
[423744765,1780369111000,-300.0,0.00012119,2]
[423744766,1780369148000,-250.0,0.00012119,2]
[423744767,1780369163000,-166.37034913,0.00012119,2]
[423744768,1780369202000,-500.0,0.0001212,2]
[423744770,1780369255000,-300.0,0.00012119,2]
[423744771,1780369309000,-195.32215875,0.00012,2]
[423744772,1780369362000,-224.36,0.00011982,2]
[423744773,1780369415000,-600.73,0.00011982,2]
[423744779,1780369661000,-2000.0,0.00011897,2]
[423744782,1780369677000,-200.0,0.000119,2]
[423744783,1780369714000,-152.63,0.00011995,2]
[423744784,1780369729000,900.36107313,0.00030136,120]
[423744785,1780369730000,-150.0,0.00012015,2]
[423744786,1780369740000,2000.0,0.00030136,120]
[423744787,1780369768000,-1000.0,0.00011984,2]
[423744788,1780369783000,-150.0,0.00012022,2]
[423744789,1780369813000,-1208.06854515,0.0001212,2]
[423744790,1780369829000,-1208.06854515,0.0001212,2]
[423744828,1780369859000,-1208.06854515,0.0001212,2]
[423744848,1780369888000,-196.56176919,0.00012902,7]
[423744851,1780369888000,-905.5869294,0.00012972,2]
[423744854,1780369888000,-1500.0,0.00013043,2]
[423744849,1780369888000,-500.0,0.00012943,3]
[423744847,1780369888000,-150.0,0.00012892,2]
[423744844,1780369888000,-298.134,0.00012872,2]
[423744845,1780369888000,-189.15032533,0.00012885,2]
[423744843,1780369888000,-4161.858,0.00012872,2]
[423744841,1780369888000,-2489.3098,0.00012843,2]
[423744839,1780369888000,-215.67541492,0.00012834,2]
[423744840,1780369888000,-9733.60368933,0.00012843,2]
[423744837,1780369888000,-152.63,0.00012594,2]
[423744838,1780369888000,-435.68,0.00012634,2]
[423744846,1780369888000,-10756.86851152,0.00012885,2]
[423744835,1780369888000,-10.20586252,0.00012513,2]
[423744836,1780369888000,-702.21,0.00012565,2]
[423744833,1780369888000,-184.96,0.00012329,2]
[423744834,1780369888000,-178.94446281,0.00012513,2]
[423744832,1780369888000,-189.15032534,0.0001214,2]
[423744831,1780369888000,-250.0,0.00012127,2]
[423744830,1780369888000,-697.30521185,0.0001212,2]
[423744829,1780369888000,-527.99429511,0.0001212,2]
[423744842,1780369888000,-196.75034628,0.00012857,2]
[423744852,1780369888000,-150.0,0.00012985,2]
[423744850,1780369888000,-5000.0,0.00012943,2]
[423744857,1780369888000,-9733.60368933,0.00013072,2]
[423744853,1780369888000,-250.0,0.00013043,2]
[423744877,1780369888000,-4517.77813957,0.00013342,2]
[423744876,1780369888000,-215.67541492,0.00012857,2]
[423744874,1780369888000,-363.12185484,0.00013342,2]
[423744875,1780369888000,-1246.48,0.00013342,2]
[423744870,1780369888000,-424.63898139,0.00013333,2]
[423744873,1780369888000,-2139.37401596,0.00013342,2]
[423744872,1780369888000,-905.58692938,0.00013335,2]
[423744871,1780369888000,-1377.83833525,0.00013333,2]
[423744865,1780369888000,-1288.8701287,0.00013278,2]
[423744863,1780369888000,-500.0,0.00013255,2]
[423744866,1780369888000,-34533.2955381,0.00013278,2]
[423744864,1780369888000,-500.0,0.0001326,2]
[423744855,1780369888000,-33243.3462,0.00013043,2]
[423744856,1780369888000,-4945.2908,0.00013043,2]
[423744867,1780369888000,-9733.60368933,0.000133,2]
[423744868,1780369888000,-250.0,0.00013332,2]
[423744869,1780369888000,-8954.39119481,0.00013333,2]
[423744859,1780369888000,-10756.86851145,0.00013109,2]
[423744858,1780369888000,-672.90783491,0.0001309,2]
[423744861,1780369888000,-151.0,0.00013159,2]
[423744862,1780369888000,-152.63,0.00013194,2]
[423744860,1780369888000,-151.0,0.00013159,2]
[423744879,1780369918000,-150.82204972,0.00012126,2]
[423744878,1780369918000,-500.0,0.00012126,2]
[423744881,1780369918000,-2000.0,0.00013385,2]
[423744882,1780369918000,-150.0,0.00013424,2]
[423744880,1780369918000,-2753.58319683,0.00013342,2]
[423744883,1780369918000,-150.0,0.00013424,2]
[423744888,1780369918000,-6916.65102283,0.0001343,2]
[423744884,1780369918000,-200.84544114,0.00013424,2]
[423744885,1780369918000,-6138.89803794,0.0001343,2]
[423744887,1780369918000,-3019.2880875,0.0001343,2]
[423744889,1780369918000,-1285.8807777,0.0001343,2]
[423744890,1780369918000,-1091.55639,0.0001343,2]
[423744886,1780369918000,-7128.58965845,0.0001343,2]
[423744891,1780369919000,-160.0,0.00012525,2]
[423744892,1780369921000,227.55474399,0.00011999,2]
[423744894,1780369924000,1000.0,0.0003013,120]
[423744893,1780369924000,160.0,0.00012549,2]
[423744895,1780369990000,500.0,0.00011884,2]
[423744896,1780370008000,320.51380116,0.00012586,2]
[423744897,1780370037000,898.0,0.00030137,120]
[423744898,1780370158000,600.73,0.00012159,2]
[423744899,1780370166000,219.16524443,0.00012159,2]
[423744900,1780370256000,-1964.94191798,0.00012098,2]
[423744901,1780370310000,-218.23754876,0.00012059,2]
[423744902,1780370325000,-1444.60429002,0.00012098,2]
[423744903,1780370363000,-355.80475557,0.00012159,2]
[423744904,1780370378000,-150.0,0.00012093,2]
[423744905,1780370416000,-50.0,0.00012093,2]
[423744907,1780370440000,161.31,0.00030082,120]
[423744911,1780370470000,-488.42,0.00012115,2]
[423744912,1780370523000,-865.76,0.00012083,2]
[423744913,1780370540000,26462.0228623,9.04e-05,2]
[423744914,1780370576000,-6016.0342087,0.000107,2]
[423744916,1780370630000,-300.0,0.00010699,2]
[423744917,1780370683000,-196.71525341,0.00010699,2]
[423744918,1780370940000,2000.0,0.00030136,120]
[423744919,1780370969000,-218.23754876,0.00010599,2]
[423744920,1780370985000,-6016.0342087,0.000106,2]
[423744921,1780371023000,-1081.0,0.00010599,2]
[423744944,1780371038000,-300.0,0.00010599,2]
[423744971,1780371040000,-2000.0,0.00011939,2]
[423744960,1780371040000,-150.0,0.00011448,2]
[423744962,1780371040000,-150.0,0.00011555,2]
[423744966,1780371040000,-150.0,0.0001166,2]
[423744967,1780371040000,-151.0,0.00011662,2]
[423744964,1780371040000,-250.0,0.00011659,2]
[423744965,1780371040000,-1680.0,0.00011659,2]
[423744961,1780371040000,-1000.0,0.00011549,2]
[423744968,1780371040000,-255.0,0.00011737,2]
[423744972,1780371040000,-161.31,0.00012329,2]
[423744963,1780371040000,-420.0,0.00011652,2]
[423744952,1780371040000,-150.0,0.00010913,2]
[423744956,1780371040000,-150.0,0.00011234,2]
[423744954,1780371040000,-150.0,0.00011127,2]
[423744957,1780371040000,-6198.85,0.00011242,2]
[423744970,1780371040000,-150.0,0.00011804,2]
[423744951,1780371040000,-150.0,0.00010806,2]
[423744950,1780371040000,-27383.74055525,0.000107,2]
[423744958,1780371040000,-5353.85,0.00011302,2]
[423744949,1780371040000,-150.0,0.00010699,2]
[423744947,1780371040000,-10047.7859615,0.000106,2]
[423744959,1780371040000,-150.0,0.00011341,2]
[423744948,1780371040000,-35394.0707298,0.000106,2]
[423744945,1780371040000,-440.0,0.00010599,2]
[423744946,1780371040000,-760.0,0.00010599,2]
[423744955,1780371040000,-287.48,0.00011187,2]
[423744969,1780371040000,-241.97,0.00011745,2]
[423744953,1780371040000,-150.0,0.0001102,2]
[423744984,1780371040000,-1386.67,0.00012781,2]
[423744974,1780371040000,-218.23754876,0.00012643,2]
[423744999,1780371040000,-12459.82282015,0.00012843,2]
[423745000,1780371040000,-58336.8865236,0.00012843,2]
[423744997,1780371040000,-6226.43661,0.00012843,2]
[423744996,1780371040000,-824.4556967,0.00012843,2]
[423744992,1780371040000,-389.01559595,0.00012843,3]
[423744994,1780371040000,-1600.61278628,0.00012843,2]
[423744995,1780371040000,-603.84235597,0.00012843,2]
[423744991,1780371040000,-327.86973261,0.00012843,2]
[423744993,1780371040000,-110.98440405,0.00012843,3]
[423744989,1780371040000,-53.95324357,0.00012825,2]
[423744987,1780371040000,-1945.51675893,0.00012825,2]
[423744990,1780371040000,-1172.13026739,0.00012843,2]
[423744998,1780371040000,-17198.57241436,0.00012843,2]
[423744986,1780371040000,-587.0,0.00012809,2]
[423744988,1780371040000,-351.5299975,0.00012825,2]
[423744975,1780371040000,-488.42,0.0001272,2]
[423744981,1780371040000,-374.72459354,0.00012743,2]
[423744978,1780371040000,-478.50807902,0.00012743,2]
[423744983,1780371040000,-5000.0,0.00012743,2]
[423744973,1780371040000,-488.42,0.00012418,2]
[423744979,1780371040000,-2604.53724092,0.00012743,2]
[423744977,1780371040000,-5587.02965583,0.00012743,2]
[423744980,1780371040000,-3452.51605122,0.00012743,2]
[423744985,1780371040000,-238.03,0.00012781,2]
[423744982,1780371040000,-201.24153987,0.00012743,2]
[423744976,1780371040000,-7537.89616377,0.00012743,2]
[423745025,1780371041000,-397.0281932,0.00012992,2]
[423745035,1780371041000,-4998.9054263,0.00013043,2]
[423745029,1780371041000,-229.99689148,0.00013023,2]
[423745026,1780371041000,-500.0,0.00012995,2]
[423745031,1780371041000,-1576.94745,0.00013026,2]
[423745047,1780371041000,-500.0,0.0001315,2]
[423745032,1780371041000,-747.90915539,0.00013026,2]
[423745033,1780371041000,-252.64721131,0.0001287,2]
[423745034,1780371041000,-14224.54669185,0.00013026,2]
[423745052,1780371041000,-451.37297248,0.0001315,2]
[423745036,1780371041000,-3512.8790951,0.0001305,2]
[423745038,1780371041000,-201.24153986,0.00013053,2]
[423745039,1780371041000,-3549.1531094,0.00013065,2]
[423745040,1780371041000,-215.67541492,0.00013071,2]
[423745044,1780371041000,-669.22,0.00013092,2]
[423745051,1780371041000,-500.0,0.0001315,2]
[423745045,1780371041000,-159.95291031,0.00013143,2]
[423745048,1780371041000,-500.0,0.0001315,2]
[423745028,1780371041000,-270.00310852,0.00013023,2]
[423745037,1780371041000,-3827.2406447,0.00013051,2]
[423745027,1780371041000,-488.42,0.00013023,2]
[423745012,1780371041000,-5400.0,0.00012869,2]
[423745024,1780371041000,-8670.07497573,0.00012983,2]
[423745004,1780371041000,-334.10962544,0.00012843,2]
[423745005,1780371041000,-807.91327417,0.00012843,2]
[423745006,1780371041000,-857.97710039,0.00012843,2]
[423745007,1780371041000,-3858.85316332,0.00012869,2]
[423745003,1780371041000,-441.2113,0.00012843,2]
[423745008,1780371041000,-1513.16049576,0.00012869,2]
[423745009,1780371041000,-796.55986639,0.00012869,2]
[423745010,1780371041000,-3596.22805072,0.00012869,2]
[423745011,1780371041000,-1869.06714865,0.00012869,2]
[423745030,1780371041000,-109.88576826,0.00013026,2]
[423745015,1780371041000,-9561.50740717,0.00012869,2]
[423745018,1780371041000,-4733.45355449,0.00012869,2]
[423745017,1780371041000,-5284.2019003,0.00012869,2]
[423745013,1780371041000,-20955.83799274,0.00012869,2]
[423745021,1780371041000,-433.0,0.00012871,2]
[423745016,1780371041000,-2289.21906532,0.00012869,2]
[423745020,1780371041000,-57734.92800974,0.00012869,2]
[423745019,1780371041000,-44700.0,0.00012869,2]
[423745022,1780371041000,-160.0,0.00012928,2]
[423745023,1780371041000,-7537.89616377,0.00012983,2]
[423745014,1780371041000,-5319.946548,0.00012869,2]
[423745049,1780371041000,-500.0,0.0001315,2]
[423745062,1780371041000,-500.0,0.00013214,2]
[423745046,1780371041000,-500.0,0.0001315,2]
[423745075,1780371041000,-150.0,0.00013214,2]
[423745072,1780371041000,-150.0,0.00013214,2]
[423745076,1780371041000,-247.95923434,0.00013214,2]
[423745073,1780371041000,-150.0,0.00013214,2]
[423745074,1780371041000,-150.0,0.00013214,2]
[423745081,1780371041000,-5681.94783467,0.00013222,2]
[423745080,1780371041000,-693.26448859,0.00013222,2]
[423745082,1780371041000,-500.0,0.00013297,2]
[423745084,1780371041000,-196.75034628,0.00013301,2]
[423745070,1780371041000,-500.0,0.00013214,2]
[423745092,1780371041000,-2000.0,0.00013432,2]
[423745087,1780371041000,-3827.2406447,0.00013359,2]
[423745085,1780371041000,-488.42,0.00013326,2]
[423745090,1780371041000,-164.0,0.000134,2]
[423745091,1780371041000,-270.238407,0.00013425,2]
[423745088,1780371041000,-201.24153986,0.00013362,2]
[423745089,1780371041000,-243.43114242,0.00013362,2]
[423745094,1780371041000,-8670.07497573,0.00013462,2]
[423745093,1780371041000,-7537.89616377,0.00013462,2]
[423745041,1780371041000,-3459.1127986,0.0001309,2]
[423745086,1780371041000,-250.0,0.00013343,2]
[423745078,1780371041000,-1819.05911323,0.00013222,2]
[423745083,1780371041000,-3731.41407631,0.000133,2]
[423745069,1780371041000,-500.0,0.00013214,2]
[423745043,1780371041000,-3019.2880876,0.0001309,2]
[423745071,1780371041000,-579.31418623,0.00013214,2]
[423745042,1780371041000,-84047.9617981,0.0001309,2]
[423745050,1780371041000,-500.0,0.0001315,2]
[423745054,1780371041000,-150.44661785,0.00013159,2]
[423745064,1780371041000,-500.0,0.00013214,2]
[423745065,1780371041000,-500.0,0.00013214,2]
[423745053,1780371041000,-0.55338215,0.00013159,2]
[423745056,1780371041000,-500.0,0.00013214,2]
[423745060,1780371041000,-500.0,0.00013214,2]
[423745055,1780371041000,-350.0092563,0.000132,2]
[423745058,1780371041000,-500.0,0.00013214,2]
[423745068,1780371041000,-500.0,0.00013214,2]
[423745057,1780371041000,-500.0,0.00013214,2]
[423745079,1780371041000,-475.80353924,0.00013222,2]
[423745077,1780371041000,-7537.89616377,0.00013222,2]
[423745067,1780371041000,-500.0,0.00013214,2]
[423745066,1780371041000,-500.0,0.00013214,2]
[423745061,1780371041000,-500.0,0.00013214,2]
[423745063,1780371041000,-500.0,0.00013214,2]
[423745059,1780371041000,-500.0,0.00013214,2]
[423745121,1780371042000,-240.88759131,0.00013686,2]
[423745130,1780371042000,-500.0,0.00013698,2]
[423745120,1780371042000,-150.0,0.00013675,2]
[423745132,1780371042000,-500.0,0.00013698,2]
[423745131,1780371042000,-500.0,0.00013698,2]
[423745119,1780371042000,-144.05895418,0.00013667,2]
[423745123,1780371042000,-570.0,0.00013698,5]
[423745122,1780371042000,-150.0,0.00013694,2]
[423745124,1780371042000,-475.86141886,0.00013698,2]
[423745134,1780371042000,-657.68,0.00013698,2]
[423745129,1780371042000,-500.0,0.00013698,2]
[423745128,1780371042000,-511.15953142,0.00013698,2]
[423745125,1780371042000,-500.0,0.00013698,2]
[423745127,1780371042000,-500.0,0.00013698,2]
[423745133,1780371042000,-657.68,0.00013698,2]
[423745143,1780371042000,-500.0,0.00013698,2]
[423745135,1780371042000,-657.68,0.00013698,2]
[423745137,1780371042000,-657.68,0.00013698,2]
[423745116,1780371042000,-3640.0,0.00013632,2]
[423745126,1780371042000,-500.0,0.00013698,2]
[423745114,1780371042000,-1276.09,0.00013632,2]
[423745095,1780371042000,-150.0,0.00013488,2]
[423745108,1780371042000,-150.0,0.00013539,2]
[423745141,1780371042000,-500.0,0.00013698,2]
[423745096,1780371042000,-150.0,0.00013488,2]
[423745100,1780371042000,-150.0,0.00013488,2]
[423745097,1780371042000,-150.0,0.00013488,2]
[423745098,1780371042000,-150.0,0.00013488,2]
[423745101,1780371042000,-150.3191625,0.00013488,2]
[423745103,1780371042000,-150.0,0.00013488,2]
[423745104,1780371042000,-150.0,0.00013488,2]
[423745099,1780371042000,-150.0,0.00013488,2]
[423745117,1780371042000,-150.0,0.00013643,2]
[423745102,1780371042000,-150.04099743,0.00013488,2]